Workbook

Sheet 1.一般预算总收入
A1: 附表1
A2: 惠州市2025年市本级一般公共预算收入调整表
E3: 单位：万元
A4: 项 目 | B4: 年初预算 | C4: 预算调整 | D4: 第二次 预算调整 | E4: 调整后 预算数
A5: 一、本级收入 | B5: =B6+B22 -> 2,228,744 | C5: =C6+C22 -> 0 | D5: =D6+D22 -> 267,592 | E5: =E6+E22 -> 2,496,336 | G5: =B5+C5+D5-E5 -> 0
A6: 税收收入 | B6: =SUM(B7:B21) -> 1,537,035 | C6: =SUM(C7:C21) -> 0 | D6: =SUM(D7:D21) -> 250,695 | E6: =B6+C6+D6 -> 1,787,730 | G6: 0
A7: 增值税 | B7: 573,641 | D7: 142,438 | E7: 716,079 | G7: 0
A8: 企业所得税 | B8: 203,000 | D8: 43,620 | E8: 246,620 | G8: 0
A9: 个人所得税 | B9: 53,410 | D9: 10,014 | E9: 63,424 | G9: 0
A10: 资源税 | B10: 1,100 | D10: 621 | E10: 1,721 | G10: 0
A11: 城市维护建设税 | B11: 174,400 | D11: 3,162 | E11: 177,562 | G11: 0
A12: 房产税 | B12: 126,369 | D12: 12,461 | E12: 138,830 | G12: 0
A13: 印花税 | B13: 63,950 | D13: 4,748 | E13: 68,698 | G13: 0
A14: 城镇土地使用税 | B14: 31,405 | D14: 5,300 | E14: 36,705 | G14: 0
A15: 土地增值税 | B15: 116,550 | D15: 33,340 | E15: 149,890 | G15: 0
A16: 车船税 | B16: 19,250 | D16: -2,675 | E16: 16,575 | G16: 0
A17: 耕地占用税 | B17: 19,000 | D17: -1,078 | E17: 17,922 | G17: 0
A18: 契税 | B18: 153,150 | D18: -1,380 | E18: 151,770 | G18: 0
A19: 烟叶税 | B19: 0 | D19: 0 | E19: 0 | G19: 0
A20: 环境保护税 | B20: 1,810 | D20: 124 | E20: 1,934 | G20: 0
A21: 其他税收收入 | D21: 0 | E21: 0 | G21: 0
A22: 非税收入 | B22: 691,709 | D22: 16,897 | E22: 708,606 | G22: 0
A23: 其中：教育费附加收入 | B23: 55,402 | D23: 11,810 | E23: 67,212 | G23: 0
A24: 地方教育附加收入 | B24: 58,433 | D24: 5,087 | E24: 63,520 | G24: 0
A25: 二、上级补助收入 | B25: 854,548 | E25: 854,548 | G25: 0
A26: 三、下级上解收入 | B26: 183,152 | D26: =D27+D28 -> 174,439 | E26: 357,591 | G26: 0
A27: 体制上解收入 | B27: 33,565 | D27: 174,439 | E27: 208,004 | G27: 0
A28: 专项上解收入 | B28: 149,587 | E28: 149,587 | G28: 0
A29: 四、上年结转收入 | B29: 139,409 | E29: 139,409 | G29: 0
A30: 五、调入资金 | B30: 428,840 | E30: 428,840 | G30: 0
A31: 政府性基金预算调入资金 | B31: 112,380 | E31: =B31+C31 -> 112,380 | G31: 0
A32: 国有资本经营预算调入资金 | B32: 316,460 | E32: 316,460 | G32: 0
A33: 其他调入资金 | E33: 0 | G33: 0
A34: 六、债务转贷收入 | B34: =B35 -> 268,518 | C34: =C35 -> 5,000 | E34: =E35 -> 273,518 | G34: 0
A35: 地方政府一般债务转贷收入 | B35: =SUM(B36:B37) -> 268,518 | C35: =SUM(C36:C37) -> 5,000 | E35: =SUM(E36:E37) -> 273,518 | G35: 0
A36: 新增债券 | B36: 5,000 | C36: 5,000 | E36: 10,000 | G36: 0
A37: 再融资债券 | B37: 263,518 | E37: =B37+C37 -> 263,518 | G37: 0
A38: 七、区域间转移性收入 | G38: 0
A39: 八、动用预算稳定调节基金 | B39: 347,360 | E39: =B39+C39+D39 -> 347,360 | G39: 0
A40: 收入总计 | B40: =B5+B25+B26+B29+B30+B34+B38+B39 -> 4,450,571 | C40: =C5+C25+C26+C29+C30+C34+C38+C39 -> 5,000 | D40: =D5+D25+D26+D29+D30+D34+D38+D39 -> 442,031 | E40: =B40+C40+D40 -> 4,897,602 | G40: 0

Sheet 2.一般预算总支出
A1: 附表2
A2: 惠州市2025年市本级一般公共预算支出调整表
E3: 单位：万元
A4: 项 目 | B4: 年初预算 | C4: 预算调整 | D4: 第二次 预算调整 | E4: 调整后预算数
A5: 一、本级支出 | B5: 3,180,742 | E5: =B5+C5+D5 -> 3,180,742 | G5: =E5-D5-C5-B5 -> 0
A6: 二、补助下级支出 | B6: 708,683 | D6: 177,388 | E6: 886,070 | G6: 0
A7: 三、上解上级支出 | B7: 216,380 | D7: 245,500 | E7: 461,880 | G7: 0
A8: 四、预备费 | B8: 45,000 | E8: 45,000 | G8: 0
A9: 五、调出资金 | G9: 0
A10: 六、债务转贷支出 | B10: =B11 -> 36,758 | C10: =C11 -> 5,000 | D10: =D11 -> 0 | E10: =E11 -> 41,758 | G10: 0
A11: 地方政府一般债务转贷支出 | B11: =B12+B13 -> 36,758 | C11: =C12+C13 -> 5,000 | E11: =E12+E13+D11 -> 41,758 | G11: 0
A12: 新增债券 | C12: 5,000 | E12: =B12+C12 -> 5,000 | G12: 0
A13: 再融资债券 | B13: 36,758 | E13: 36,758 | G13: 0
A14: 七、区域间转移性支出 | B14: 11,000 | E14: 11,000 | G14: 0
A15: 八、债务还本支出 | B15: 252,009 | E15: 252,009 | G15: 0
A16: 九、安排预算稳定调节基金 | B16: 0 | D16: 19,143 | E16: =D16+C16+B16 -> 19,143
A17: 支出总计 | B17: =B15+B14+B10+B9+B8+B7+B6+B5+B16 -> 4,450,571 | C17: =C15+C14+C10+C9+C8+C7+C6+C5+C16 -> 5,000 | D17: =D15+D14+D10+D9+D8+D7+D6+D5+D16 -> 442,031 | E17: =E15+E14+E10+E9+E8+E7+E6+E5+E16 -> 4,897,602 | G17: =E17-D17-C17-B17 -> 0
D19: ='1.一般预算总收入'!D40-D17 -> 0 | E19: ='1.一般预算总收入'!E40-E17 -> 0
